bitfinex/quotes_ETHUSD_20251120
["timestamp","ask_amount","ask_price","bid_price","bid_amount"]
[1763649595946,3.45600213,2997.6,2997.2,0.001]
[1763649596259,0.405504,2998.0,2997.2,0.4535]
[1763649596433,0.405504,2998.0,2997.2,0.001]
[1763649596434,0.90699264,2997.8,2997.2,0.001]
[1763649596638,0.12,2998.2,2997.2,0.001]
[1763649596953,6.79070366,2998.2,2997.2,0.4535]
[1763649597155,6.669112,2998.9,2997.3,0.03336336]
[1763649597356,6.669112,2998.9,2997.2,0.4535]
[1763649597357,6.669112,2998.9,2997.4,0.12]
[1763649597520,0.90699264,2998.8,2997.4,0.12]
[1763649597717,0.03111168,2998.7,2997.4,0.4525]
[1763649598053,0.4135,2998.8,2997.4,0.4525]
[1763649598054,0.405504,2998.5,2997.4,0.4525]
[1763649598418,3.74055043,2998.5,2997.4,3.78863001]
[1763649598752,3.33488961,2998.6,2997.4,0.831463]
[1763649599059,3.33488961,2998.6,2997.2,3.33742486]
[1763649599060,0.90699264,2998.5,2997.2,3.33742486]
[1763649599268,0.03111168,2998.4,2997.3,0.4525]
[1763649599562,0.405504,2998.3,2997.2,0.001]
[1763649600141,0.404704,2998.3,2997.2,3.78993207]
[1763649600442,0.404704,2998.3,2994.6,1.67181464]
[1763649600443,5.88344454,2997.3,2994.4,5.71111265]
[1763649600760,20.04311886,2998.2,2994.8,5.88344454]
[1763649600761,0.82316768,2997.2,2994.8,5.88344454]
[1763649600926,0.12,2997.1,2995.3,5.88344454]
[1763649601127,0.70328658,2997.6,2995.8,5.88344454]
[1763649601327,3.33533453,2998.2,2996.0,0.405504]
[1763649601528,3.33488961,2998.6,2996.5,0.405504]
[1763649601772,3.36600129,2998.6,2996.9,0.90699264]
[1763649601958,13.37072738,2998.6,2997.0,0.67904372]
[1763649602278,13.37072738,2998.6,2997.1,0.03336558]
[1763649602279,1.5897156,2998.5,2997.1,0.03336558]
[1763649602564,1.5897156,2998.5,2996.6,0.1849]
[1763649602565,10.74090684,2998.4,2996.6,0.1849]
[1763649602781,1.61145165,2998.3,2996.7,0.4525]
[1763649602952,0.405504,2998.2,2996.7,1.35949264]
[1763649603124,0.405504,2998.2,2996.8,0.82186015]
[1763649603330,3.45502511,2998.5,2996.9,0.90699264]
[1763649603560,6.66977922,2998.6,2996.9,0.4525]
[1763649603764,0.43661568,2998.4,2996.9,0.4525]
[1763649603964,0.43661568,2998.4,2995.9,0.1849]
[1763649603965,0.88525928,2998.1,2995.9,3.97526724]
[1763649604126,0.88525928,2998.1,2996.0,0.39752672]
[1763649604127,1.29076328,2998.0,2996.0,0.39752672]
[1763649604329,0.70509594,2997.9,2996.6,3.33711539]
[1763649604564,0.88525928,2999.2,2998.0,0.1849]
[1763649604769,0.88525928,2999.8,2998.0,0.1849]
[1763649605070,0.1235,2999.9,2998.1,1.05933445]
[1763649605231,0.12,3000.0,2998.1,1.05933445]
[1763649605569,7.60501102,2999.9,2998.2,0.4525]
[1763649605741,10.90735269,2999.9,2998.2,0.4525]
[1763649606065,10.90735269,2999.9,2998.3,0.12]
[1763649606066,1.6129979,2999.8,2998.3,0.12]
[1763649606367,6.66755566,2999.6,2998.2,0.4525]
[1763649606540,0.405504,2999.4,2998.2,0.4525]
[1763649606931,0.405504,2999.4,2998.2,3.78781742]
[1763649607165,0.405504,2999.4,2998.2,0.4525]
[1763649607362,6.66711114,2999.8,2998.3,0.5725]
[1763649607563,0.70750945,2999.7,2998.4,0.4525]
[1763649607776,0.405504,2999.6,2998.4,0.4525]
[1763649607966,0.03111168,2999.5,2998.4,0.4525]
[1763649608269,0.12,2999.4,2998.4,0.4516]
[1763649608565,6.66822258,2999.3,2998.4,0.4516]
[1763649608868,0.405504,2999.2,2998.4,0.4516]
[1763649609177,0.405504,2999.0,2998.0,0.1849]
[1763649609331,0.405504,2999.0,2997.3,0.4516]
[1763649609332,0.405504,2998.8,2997.3,0.4516]
[1763649609537,0.405504,2998.6,2997.1,0.1918]
[1763649609737,0.405504,2998.4,2997.1,0.1918]
[1763649610040,0.03111168,2998.5,2996.9,0.4516]
[1763649610041,0.405504,2998.2,2996.9,0.4516]
[1763649610259,0.43661568,2998.2,2996.9,0.4516]
[1763649610441,3.33533453,2998.2,2997.1,6.67311734]
[1763649610656,6.67000166,2998.5,2997.2,0.5716]
[1763649610835,6.67000166,2998.5,2997.2,1.47859264]
[1763649611038,1.34360832,2998.4,2997.0,0.84962927]
[1763649611238,1.34360832,2998.4,2997.0,3.78826045]
[1763649611467,1.34360832,2998.4,2997.0,1.35859264]
[1763649611682,0.405504,2998.2,2997.0,0.4516]
[1763649611971,0.12,2998.1,2997.1,0.4516]
[1763649612340,1.61393149,2998.4,2997.1,0.4516]
[1763649612537,6.67022462,2998.4,2997.2,6.7928947]
[1763649612762,6.67022462,2998.4,2997.3,1.63144211]
[1763649613082,0.12,2998.8,2997.3,2.08304211]
[1763649613239,1.18653022,2999.3,2997.7,0.90699264]
[1763649613240,4.04134476,2999.2,2997.7,0.90699264]
[1763649613440,0.002,2999.5,2999.2,0.1918]
[1763649613640,0.70748179,3000.4,2999.3,1.02699264]
[1763649613874,3.33471721,3000.6,2999.4,0.12]
[1763649614096,3.33471721,3000.6,2999.2,6.07524454]
[1763649614097,0.15111168,3000.5,2999.2,0.1918]
[1763649614603,0.15111168,3000.5,2998.8,0.1918]
[1763649614604,0.90699264,3000.3,2998.8,0.1918]
[1763649614802,0.88525928,3000.0,2998.0,0.4516]
[1763649614977,0.405504,2999.7,2998.0,0.4516]
[1763649615301,0.405504,2999.7,2997.7,3.45579094]
[1763649615302,0.405504,2999.5,2997.7,3.45579094]
[1763649615608,0.405504,2999.3,2997.8,0.60171909]
[1763649615770,0.405504,2999.3,2997.1,3.78814382]
[1763649615771,0.405504,2999.1,2997.1,3.78814382]
[1763649615968,0.88525928,2999.1,2997.5,0.1918]
[1763649616177,0.405504,2999.0,2997.5,0.1918]
[1763649616381,0.405504,2999.0,2997.6,0.4516]
[1763649616382,0.15111168,2998.9,2997.6,0.4516]
[1763649616580,0.15111168,2998.9,2997.6,3.90758349]
[1763649616581,1.31249664,2998.7,2997.6,3.90758349]
[1763649616797,1.31249664,2998.7,2997.7,0.40993835]
[1763649616999,6.66755566,2999.6,2997.8,0.48495779]
[1763649617305,0.93810432,2999.5,2997.9,0.12]
[1763649617477,0.686504,2999.4,2997.8,0.4516]
[1763649617829,0.43661568,2999.3,2997.5,0.1918]
[1763649618007,0.03111168,2999.2,2997.5,0.1918]
[1763649618215,1.41076328,2999.1,2996.9,0.4526]
[1763649618392,1.41076328,2999.1,2996.9,0.001]
[1763649618393,1.29076328,2998.6,2996.9,0.001]
[1763649618602,1.29076328,2998.2,2996.9,0.001]
[1763649618939,0.405504,2997.8,2996.9,0.001]
[1763649619118,0.405504,2997.4,2996.9,0.001]
[1763649619285,0.405504,2997.4,2995.3,0.4516]
[1763649619286,0.405504,2997.0,2995.3,0.4516]
[1763649619473,0.405504,2996.8,2995.3,0.4516]
[1763649619675,0.405504,2996.8,2995.4,0.39820664]
[1763649619902,0.405504,2996.8,2995.3,0.4516]
[1763649620226,1.28216071,2996.9,2995.1,0.4516]
[1763649620227,0.405504,2996.6,2995.1,0.4516]
[1763649620373,1.70893629,2996.9,2995.2,0.03338675]
[1763649620374,0.70677558,2996.8,2995.2,0.03338675]
[1763649620576,0.405504,2996.7,2995.3,6.67712748]
[1763649620877,1.31249664,2996.7,2995.4,0.66771275]
[1763649621114,1.31249664,2996.7,2995.5,0.4516]
[1763649621789,1.59249664,2996.7,2994.8,0.5716]
[1763649622180,1.59249664,2996.7,2994.7,3.33923264]
[1763649622181,1.59249664,2996.7,2994.9,0.4516]
[1763649622382,3.33711539,2996.6,2995.1,5.88344454]
[1763649622623,0.12,2996.9,2995.3,0.90699264]
[1763649622784,0.12,2996.9,2995.2,10.60770898]
[1763649622785,0.12,2997.3,2995.7,0.90699264]
[1763649622981,0.12,2997.3,2995.3,1.35859264]
[1763649623297,0.12,2997.3,2995.4,0.12]
[1763649623483,0.28,2997.2,2995.4,0.4516]
[1763649623690,0.405504,2997.1,2995.4,0.4516]
[1763649623884,0.405504,2997.1,2995.2,0.90699264]
[1763649623885,0.1436,2995.5,2995.2,0.90699264]
[1763649624206,1.31249664,2995.2,2992.9,0.4516]
[1763649624548,0.90699264,2994.9,2993.1,0.90699264]
[1763649624680,0.405504,2994.8,2993.2,0.03340906]
[1763649624887,0.121,2995.4,2993.3,0.68238462]
[1763649624888,1.31249664,2995.3,2993.3,0.68238462]
[1763649625203,1.31249664,2995.3,2993.4,0.03340682]
[1763649625423,0.88216071,2996.2,2993.4,0.5726]
[1763649625604,0.405504,2995.9,2993.4,1.35859264]
[1763649625782,0.405504,2995.9,2993.5,0.5726]
[1763649625986,0.405504,2995.9,2993.6,0.121]
[1763649626218,0.405504,2995.9,2993.6,0.5726]
[1763649626415,0.5236537,2996.0,2993.9,0.90699264]
[1763649626619,0.88216071,2997.0,2994.4,0.90699264]
[1763649626934,0.88216071,2997.0,2993.7,0.4516]
[1763649626935,0.52347002,2996.8,2992.4,0.4516]
[1763649627238,0.88216071,2995.5,2992.5,0.4516]
[1763649627385,0.0992,2995.0,2992.5,0.4516]
[1763649627714,0.121,2995.4,2992.5,0.4516]
[1763649627715,0.121,2994.9,2992.5,0.4516]
[1763649628022,5.88344454,2994.6,2992.5,0.4516]
[1763649628228,0.90699264,2994.0,2991.9,0.1918]
[1763649628378,0.90699264,2994.0,2990.1,3.34435797]
[1763649628379,0.90699264,2992.6,2990.1,0.4516]
[1763649628582,0.90699264,2992.4,2990.4,3.5358252]
[1763649628833,0.90699264,2992.4,2990.5,0.35358252]
[1763649629038,0.90699264,2992.4,2990.1,3.79595889]
[1763649629039,0.90699264,2992.1,2990.1,0.4516]
[1763649629245,0.90699264,2991.5,2989.0,0.1918]
[1763649629417,0.88216071,2992.3,2989.1,0.4614]
[1763649629418,0.123,2991.4,2989.1,0.4614]
[1763649629616,0.123,2991.3,2989.2,0.39987912]
[1763649630049,0.123,2991.3,2989.1,0.4614]
[1763649630195,5.88344454,2991.0,2989.0,0.1918]
[1763649630539,5.88344454,2991.0,2989.3,0.001]
[1763649630540,5.88344454,2989.7,2989.3,0.001]
[1763649630718,0.124,2989.7,2989.3,0.001]
[1763649631902,0.90699264,2990.6,2989.3,0.001]
[1763649632224,0.124,2990.5,2989.3,0.001]
[1763649632425,0.124,2990.5,2989.4,0.4614]
[1763649632728,0.124,2990.5,2989.4,3.8065506]
[1763649632899,0.0992,2991.8,2989.5,1.2877477]
[1763649633105,5.88344454,2991.4,2989.5,0.84215506]
[1763649633429,0.90699264,2991.3,2989.5,0.4614]
[1763649634430,0.124,2991.7,2989.3,0.001]
[1763649634431,0.0992,2990.7,2989.3,0.001]
[1763649634633,0.90699264,2990.5,2989.3,0.001]
[1763649634797,0.90699264,2990.2,2989.3,0.001]
[1763649634997,0.90699264,2990.5,2989.3,0.001]
[1763649635425,1.03099264,2990.6,2989.3,0.4624]
[1763649635599,0.124,2990.6,2989.3,0.4624]
[1763649636032,1.03099264,2990.6,2989.3,0.4624]
[1763649636399,0.124,2990.6,2989.3,0.4624]
[1763649636635,0.124,2990.6,2989.4,6.69030574]
[1763649636942,0.124,2990.6,2989.5,0.71527057]
[1763649637142,0.124,2990.6,2989.5,1.17667057]
[1763649637368,0.03111168,2991.9,2989.5,1.17667057]
[1763649637369,3.34197653,2992.3,2990.5,0.1811]
[1763649637513,0.124,2992.6,2990.6,1.06443074]
[1763649637713,0.124,2992.6,2990.7,1.17429753]
[1763649638013,0.124,2993.0,2991.1,0.90699264]
[1763649638245,0.03111168,2992.9,2991.1,0.90699264]
[1763649638446,0.03111168,2992.9,2991.2,0.4937]
[1763649638610,0.03111168,2992.9,2991.3,10.02908433]
[1763649638611,3.34131451,2992.9,2991.3,10.02908433]
[1763649638808,3.34131451,2992.9,2991.1,1.03099264]
[1763649638809,5.88344454,2991.4,2989.0,0.001]
[1763649639012,0.90699264,2990.7,2989.0,0.001]
[1763649639236,0.90699264,2990.7,2989.0,0.4947]
[1763649639237,0.405504,2990.5,2989.0,0.4947]
[1763649639481,0.405504,2990.5,2989.0,0.001]
[1763649639684,1.31249664,2990.2,2989.0,0.001]
[1763649640035,0.405504,2990.5,2989.0,0.001]
[1763649640251,1.31249664,2990.2,2989.0,0.001]
[1763649640463,0.0992,2990.0,2989.0,0.001]
[1763649640651,7.19594118,2989.8,2989.0,0.001]
[1763649641543,0.90699264,2989.7,2989.0,0.001]
[1763649641874,0.0992,2989.5,2989.0,0.001]
[1763649642341,0.405504,2989.3,2989.0,0.001]
[1763649642543,1.31249664,2989.1,2989.0,0.001]
[1763649642969,1.41169664,2989.1,2989.0,0.001]
[1763649643550,1.31249664,2989.1,2989.0,0.001]
[1763649643959,0.125,2989.1,2989.0,0.001]
[1763649644653,0.05,2988.6,2985.7,0.4937]
[1763649644865,16.72035236,2990.4,2985.7,0.4937]
[1763649644866,0.0992,2988.8,2985.7,0.4937]
[1763649645149,0.126,2988.7,2986.7,0.90699264]
[1763649645380,5.88344454,2989.9,2986.8,0.4937]
[1763649645537,0.126,2989.8,2986.8,0.4937]
[1763649645738,0.04181021,2989.7,2986.8,0.4937]
[1763649645941,0.126,2989.6,2987.0,0.90699264]
[1763649646192,0.126,2989.6,2987.1,0.80504372]
[1763649646193,0.04181301,2989.5,2987.1,0.80504372]
[1763649646486,0.126,2989.6,2987.1,1.36654372]
[1763649646688,0.90699264,2989.4,2987.2,10.53654947]
[1763649646841,0.0418158,2989.3,2987.2,3.84131649]
[1763649647036,0.0418158,2989.3,2987.3,0.96511602]
[1763649647248,0.0418158,2989.3,2987.3,0.4937]
[1763649647249,0.0992,2989.3,2987.3,0.4937]
[1763649647462,0.0992,2989.3,2987.4,0.4937]
[1763649647670,0.90699264,2989.4,2987.4,0.4937]
[1763649647852,0.90699264,2989.4,2987.2,0.4937]
[1763649647853,0.0418158,2989.3,2987.2,0.4937]
[1763649648042,0.0418158,2989.3,2987.3,0.40351582]
[1763649648288,0.90699264,2989.4,2987.4,0.4937]
[1763649648442,0.52484754,2989.1,2987.4,0.4937]
[1763649648645,3.47160053,2989.0,2987.5,10.04184099]
[1763649648841,6.81720106,2989.0,2987.5,3.34728033]
[1763649649073,6.81720106,2989.0,2987.6,0.4937]
[1763649649271,6.81720106,2989.0,2987.7,0.71882607]
[1763649649272,0.0418214,2988.9,2987.7,0.71882607]
[1763649649657,0.52482674,2989.3,2987.8,0.4937]
[1763649649855,1.18653022,2991.4,2987.8,0.4937]
[1763649649856,3.34360399,2990.8,2988.0,0.90699264]
[1763649650177,3.34360399,2990.8,2988.1,0.4937]
[1763649650178,0.90699264,2990.6,2988.1,0.4937]
[1763649650380,0.04179903,2990.5,2988.1,0.4937]
[1763649650554,0.90699264,2990.3,2988.2,10.03948863]
[1763649650881,0.90699264,2990.3,2988.3,1.38797761]
[1763649651080,0.04180322,2990.2,2988.2,0.4937]
[1763649651279,0.126,2990.1,2988.2,0.4937]
[1763649651580,0.04180602,2990.0,2988.2,1.52669264]
[1763649651803,0.126,2990.1,2988.2,1.52669264]
[1763649651804,0.126,2990.1,2988.3,0.4937]
[1763649652110,0.126,2990.1,2988.3,1.98501255]
[1763649652404,10.03210272,2990.4,2988.3,1.98501255]
[1763649652405,3.34403424,2990.4,2988.5,7.11050556]
[1763649652592,0.90699264,2990.3,2988.7,10.03780908]
[1763649652901,6.81406848,2990.4,2988.7,13.38374544]
[1763649652902,3.47003424,2990.4,2988.7,13.38374544]
[1763649653102,3.47003424,2990.4,2988.8,0.4937]
[1763649653504,3.47003424,2990.4,2988.9,0.1938]
[1763649653890,3.47003424,2990.4,2989.0,0.4937]
[1763649654208,0.04180182,2990.3,2989.0,0.4937]
[1763649654702,10.93607697,2991.3,2989.1,10.0364658]
[1763649655003,10.93607697,2991.3,2989.2,1.05301658]
[1763649655004,0.16778924,2991.2,2989.2,1.05301658]
[1763649655167,0.16778924,2991.2,2989.2,2.45370922]
[1763649655368,0.126,2991.2,2989.3,0.4937]
[1763649655597,1.07478188,2991.2,2989.4,0.126]
[1763649655822,1.07478188,2991.2,2989.3,0.4937]
[1763649655987,0.70061068,2991.1,2989.3,0.4937]
[1763649656312,1.32945675,2991.0,2989.3,0.4937]
[1763649656803,1.31249664,2990.7,2989.3,0.4937]
[1763649657005,1.31249664,2990.7,2988.9,0.1938]
[1763649657006,0.405504,2990.5,2988.9,0.1938]
[1763649657168,1.00816071,2990.6,2988.9,0.6875]
[1763649657504,0.405504,2990.2,2988.9,0.6875]
[1763649657703,0.405504,2990.0,2988.5,0.1938]
[1763649658016,0.04180462,2990.1,2988.5,0.1938]
[1763649658017,0.405504,2989.8,2988.5,0.1938]
[1763649658223,0.126,2989.9,2988.6,0.4937]
[1763649658515,0.126,2989.9,2988.7,0.126]
[1763649658717,0.126,2989.9,2988.8,0.4937]
[1763649659253,4.17468586,2990.1,2988.8,0.4937]
[1763649659416,0.70431611,2990.0,2988.8,0.4937]
[1763649660225,7.11050556,2988.9,2987.3,0.001]
[1763649660454,0.88039514,2987.6,2987.3,0.001]
[1763649660751,0.70475056,2987.5,2987.3,0.001]
[1763649661043,0.88039514,2988.0,2987.3,0.4947]
[1763649661211,0.88039514,2988.7,2987.4,0.01990283]
[1763649661409,0.88039514,2988.7,2987.3,0.4947]
[1763649661410,0.70483187,2988.8,2988.1,0.1938]
[1763649661608,0.127,2989.0,2988.1,0.1938]
[1763649661609,4.05064865,2988.9,2988.1,0.1938]
[1763649661826,0.70483187,2988.8,2988.1,0.1938]
[1763649661998,0.70483187,2988.7,2988.1,0.1938]
[1763649662197,0.70483187,2988.7,2987.3,0.001]
[1763649662198,0.405504,2988.5,2987.3,0.4947]
[1763649662438,0.70483187,2988.7,2988.4,0.1938]
[1763649662739,0.88039514,2989.5,2988.4,6.88630419]
[1763649662938,0.70465174,2989.6,2988.5,1.18233042]
[1763649663124,0.70465174,2989.9,2988.6,0.4937]
[1763649663438,1.00739514,2990.4,2988.7,0.127]
[1763649663637,1.00739514,2990.4,2988.6,0.4937]
[1763649663638,1.62727065,2990.3,2988.6,0.4937]
[1763649663938,1.58546883,2990.2,2988.7,0.127]
[1763649664274,0.70507369,2990.1,2988.7,0.127]
[1763649664535,0.70507369,2990.3,2988.8,0.4937]
[1763649664718,0.70507369,2990.3,2989.0,0.90699264]
[1763649664915,0.127,2990.4,2989.1,1.92268425]
[1763649665115,0.70507369,2990.6,2989.1,1.92268425]
[1763649665317,0.70507369,2990.5,2989.2,0.4937]
[1763649665516,0.70507369,2990.6,2989.2,0.4937]
[1763649665716,0.70507369,2990.8,2989.3,0.31826843]
[1763649665916,3.34314061,2991.2,2989.4,0.4937]
[1763649666251,0.70533341,2991.1,2989.4,0.4937]
[1763649666482,0.70533341,2991.1,2989.5,0.126]
[1763649666770,0.70533341,2991.2,2989.6,1.03299264]
[1763649666930,0.70533341,2991.2,2989.7,1.10681155]
[1763649667122,1.18653022,2991.8,2989.7,1.10681155]
[1763649667123,1.18653022,2992.1,2991.1,0.1938]
[1763649667322,0.88039514,2992.7,2991.2,0.4937]
[1763649667527,0.70484643,2992.8,2991.2,1.40069264]
[1763649667833,0.126,2993.1,2991.3,0.99649982]
[1763649668011,3.46708335,2993.1,2991.3,1.49019982]
[1763649668207,0.126,2993.1,2991.6,0.90699264]
[1763649668436,1.22828457,2993.7,2991.6,0.90699264]
[1763649668437,0.70469327,2993.3,2991.6,0.90699264]
[1763649668643,3.46675773,2993.4,2991.9,0.90699264]
[1763649668847,0.126,2993.4,2992.0,0.5949]
[1763649669203,0.126,2993.4,2992.1,0.4689]
[1763649669421,0.70352079,2993.7,2992.1,1.37589264]
[1763649669609,0.70356682,2993.9,2992.2,1.04803982]
[1763649669809,0.126,2994.1,2992.2,1.51693982]
[1763649670046,0.126,2994.1,2992.3,0.4689]
[1763649670596,0.16774877,2994.1,2992.3,0.4689]
[1763649670785,0.90699264,2993.9,2992.4,3.46779922]
[1763649670972,0.52388602,2994.2,2992.5,1.30066256]
[1763649670973,0.126,2994.2,2992.5,1.30066256]
[1763649671177,0.126,2994.2,2992.5,1.76956256]
[1763649671361,0.126,2994.2,2992.6,0.4689]
[1763649671567,0.126,2994.2,2992.2,0.1868]
[1763649671568,0.04174877,2994.1,2992.2,0.1868]
[1763649671887,0.405504,2994.0,2992.2,0.6557]
[1763649672061,0.405504,2993.8,2992.2,0.6557]
[1763649672385,0.405504,2993.6,2992.3,0.4689]
[1763649672589,0.04175714,2993.5,2992.3,0.4689]
[1763649672898,1.31249664,2993.3,2991.5,0.4689]
[1763649673111,0.405504,2993.1,2991.5,0.4689]
[1763649673411,0.405504,2992.9,2991.1,0.1938]
[1763649673553,0.405504,2992.9,2990.6,0.1868]
[1763649673554,0.405504,2992.7,2990.6,0.1868]
[1763649673754,0.405504,2992.5,2990.6,0.1868]
[1763649673987,0.04177249,2992.4,2990.7,0.4689]
[1763649674156,0.405504,2992.3,2990.7,0.4689]
[1763649674489,0.16777249,2992.4,2990.7,0.4689]
[1763649674490,0.126,2992.4,2990.7,0.4689]
[1763649674654,0.52423451,2992.7,2990.8,13.374348]
[1763649674850,1.77297851,2993.7,2990.8,13.374348]
[1763649674851,6.68093648,2993.6,2991.4,0.90699264]
[1763649675098,6.68093648,2993.6,2991.5,0.4689]
[1763649675099,1.03299264,2993.5,2991.5,0.4689]
[1763649675250,1.03299264,2993.5,2991.5,0.5949]
[1763649675654,1.03299264,2993.5,2991.6,0.4689]
[1763649675854,1.07474978,2993.5,2991.6,0.4689]
[1763649676170,0.126,2993.4,2991.6,0.4689]
[1763649676384,0.04175993,2993.3,2991.7,0.126]
[1763649676579,0.405504,2993.2,2991.7,0.4689]
[1763649676881,6.6822586,2993.0,2991.7,0.4689]
[1763649677084,1.48026215,2992.9,2991.7,0.4689]
[1763649677594,0.126,2992.9,2991.7,3.81143428]
[1763649677757,0.126,2992.9,2991.8,0.38114343]
[1763649677959,0.126,2992.9,2991.8,0.85004343]
[1763649678168,0.126,2992.9,2991.9,0.4689]
[1763649678373,0.126,2992.9,2991.2,0.4689]
[1763649678374,0.0417669,2992.8,2991.2,0.4689]
[1763649678573,0.126,2992.9,2991.2,0.4689]
[1763649678574,0.405504,2992.7,2991.2,0.4689]
[1763649678833,6.68359844,2992.4,2991.2,3.81196332]
[1763649679126,6.68359844,2992.4,2990.7,0.4689]
[1763649679127,0.405504,2992.2,2990.7,0.4689]
[1763649679316,0.405504,2990.8,2988.5,0.4689]
[1763649679613,0.405504,2990.8,2986.6,3.3482322]
[1763649679614,0.125,2990.7,2989.1,0.4689]
[1763649679921,0.531504,2990.6,2989.1,0.4689]
[1763649680075,0.126,2990.5,2989.1,0.4689]
[1763649680521,0.126,2990.5,2988.4,3.5400567]
[1763649680522,0.405504,2990.2,2988.4,0.6627]
[1763649680701,1.31249664,2989.8,2987.8,0.126]
[1763649680904,8.4230022,2989.4,2987.7,0.4689]
[1763649681278,1.31249664,2989.4,2987.7,3.81589918]
[1763649681479,0.126,2989.3,2987.7,3.81592532]
[1763649681697,0.405504,2989.2,2987.6,0.1868]
[1763649681890,0.405504,2989.2,2987.3,0.1868]
[1763649681891,1.31249664,2988.8,2987.3,0.1868]
[1763649682105,0.405504,2988.1,2985.4,2.96446506]
[1763649682422,0.405504,2988.1,2985.0,0.1868]
[1763649682423,0.405504,2987.2,2985.5,1.22726161]
[1763649682577,0.405504,2987.0,2985.5,0.4689]
[1763649682921,0.405504,2986.7,2985.5,0.4689]
[1763649683231,0.405504,2986.5,2985.0,0.1868]
[1763649683448,0.405504,2986.5,2983.9,0.126]
[1763649683449,7.11050556,2985.7,2984.1,2.96446506]
[1763649683725,7.11050556,2985.7,2983.6,0.4689]
[1763649683726,7.11050556,2985.7,2984.2,0.29644651]
[1763649683727,1.31249664,2985.7,2984.2,0.29644651]
[1763649683894,0.405504,2986.4,2984.2,0.4689]
[1763649684096,0.88039514,2986.1,2984.2,0.4689]
[1763649684354,0.88039514,2986.1,2983.4,0.1868]
[1763649684355,1.31249664,2985.1,2983.9,0.4689]
[1763649684623,1.31249664,2985.1,2983.4,0.1868]
[1763649684624,0.405504,2984.9,2983.4,0.1868]
[1763649684928,0.405504,2984.9,2981.9,0.4689]
[1763649684929,1.31249664,2983.9,2981.9,0.4689]
[1763649685078,1.31249664,2983.6,2981.9,0.6557]
[1763649685282,0.405504,2983.4,2982.0,0.4689]
[1763649685546,0.405504,2983.5,2982.0,0.4689]
[1763649685818,0.126,2983.4,2981.1,0.4689]
[1763649686012,0.531504,2983.3,2981.1,0.4689]
[1763649686190,0.127,2983.2,2981.1,0.4689]
[1763649686517,0.90699264,2983.4,2981.1,0.4689]
[1763649686518,0.405504,2983.8,2981.4,7.11050556]
[1763649686812,0.405504,2983.6,2981.5,1.17995056]
[1763649687015,3.35176805,2983.5,2981.5,3.82291643]
[1763649687191,3.35176805,2983.5,2981.6,0.4689]
[1763649687192,0.405504,2983.4,2981.6,0.4689]
[1763649687396,0.126,2983.3,2981.6,1.37589264]
[1763649687700,1.31249664,2983.7,2981.6,1.37589264]
[1763649687936,1.31249664,2983.7,2981.5,10.06204929]
[1763649687937,0.126,2983.6,2981.7,1.61269419]
[1763649688226,0.126,2983.6,2980.9,0.4689]
[1763649688227,0.0992,2983.5,2980.9,0.4689]
[1763649688379,0.127,2983.4,2981.0,0.02086248]
[1763649688696,0.127,2983.4,2980.9,0.4689]
[1763649688697,0.405504,2983.1,2980.9,1.37589264]
[1763649689013,6.70286212,2983.8,2980.8,10.25111292]
[1763649689014,0.405504,2982.4,2982.0,0.001]
[1763649689203,0.405504,2982.5,2982.0,0.001]
[1763649689403,0.127,2982.4,2982.0,0.001]
[1763649689605,0.405504,2982.3,2982.0,0.001]
[1763649689807,0.52585765,2983.6,2982.0,0.001]
[1763649690008,0.405504,2983.5,2982.0,0.4899]
[1763649690322,13.81246922,2984.2,2982.0,0.4899]
[1763649690323,17.16353432,2984.2,2982.0,0.4899]
[1763649690622,1.18653022,2985.8,2982.0,0.4899]
[1763649690623,7.11050556,2984.8,2982.0,0.4899]
[1763649690921,0.40710358,2985.2,2982.2,13.4129166]
[1763649690922,0.127,2984.7,2982.2,13.4129166]
[1763649691125,0.127,2984.7,2982.3,2.82788356]
[1763649691327,3.35010379,2985.0,2982.3,2.82788356]
[1763649691493,0.127,2984.9,2982.6,0.90699264]
[1763649691685,3.34952269,2985.5,2982.6,0.127]
[1763649691993,0.127,2985.4,2982.7,0.4889]
[1763649692409,0.127,2985.3,2982.8,0.02081083]
[1763649692722,0.127,2985.3,2982.9,0.4889]
[1763649692922,0.405504,2984.6,2983.0,3.35232986]
[1763649693256,3.35007347,2985.1,2983.0,3.35232986]
[1763649693257,0.127,2984.5,2983.1,1.80082964]
[1763649693521,0.127,2984.7,2983.1,1.78001563]
[1763649693720,6.69949418,2985.3,2983.2,0.4889]
[1763649693721,3.34974709,2985.3,2983.2,0.4889]
[1763649693896,3.34837522,2986.6,2983.2,0.4889]
[1763649693897,0.127,2985.2,2983.2,0.4889]
[1763649694083,7.11050556,2986.6,2983.5,0.90699264]
[1763649694291,6.86565727,2986.5,2983.6,0.80174982]
[1763649694492,7.11050556,2986.1,2983.6,1.47644982]
[1763649694727,1.07585466,2986.0,2983.7,0.4889]
[1763649694929,6.69814796,2985.9,2983.8,3.35143106]
[1763649695092,0.04186482,2985.8,2983.8,3.35143106]
[1763649695323,0.90699264,2985.8,2983.9,0.89372044]
[1763649695498,0.16886622,2985.7,2983.9,1.77992575]
[1763649695803,0.16886622,2985.7,2984.0,0.4889]
[1763649696021,0.44737163,2985.6,2984.0,0.4889]
[1763649696195,0.44657163,2985.6,2984.0,0.4889]
[1763649696532,0.44657163,2985.6,2983.2,0.1858]
[1763649696533,0.90699264,2985.4,2983.2,0.1858]
[1763649696731,0.52540963,2986.3,2983.2,0.1858]
[1763649696732,0.93251321,2986.3,2983.3,0.02080206]
[1763649696930,13.39674456,2985.8,2983.6,0.90699264]
[1763649697134,10.04755842,2985.8,2983.6,0.90699264]
[1763649697334,1.07585886,2985.7,2983.7,0.4889]
[1763649697533,0.16886622,2985.7,2983.7,0.4889]
[1763649698251,0.405504,2985.6,2983.7,0.4889]
[1763649698411,3.34825153,2986.7,2983.7,0.4889]
[1763649698412,6.69747504,2986.2,2983.8,7.11050556]
[1763649698602,0.127,2985.7,2983.9,0.88694056]
[1763649698817,0.04186763,2985.6,2983.9,1.23284056]